[Event "Silver Lake Open-A 2019"]
[Site "Veliko Gradiste"]
[Date "2019.06.19"]
[Round "5.2"]
[White "Dimitrov, Vladimir"]
[Black "Zakhartsov, Viacheslav V."]
[Result "0-1"]
[ECO "E48"]
[WhiteElo "2309"]
[BlackElo "2518"]
[Annotator "ChessBase"]
[PlyCount "42"]
[EventDate "2019.06.16"]
[EventType "swiss"]
[EventCountry "SRB"]
[SourceTitle "playchess.com"]
[Source "ChessBase"]
[SourceQuality "1"]
[TimeControl "40/5400+30:900+30"]

1. d4 {[%emt 0:00:00]} Nf6 {[%emt 0:00:28]} 2. c4 {[%emt 0:00:00]} e6 {[%emt 0:00:03]} 3. Nc3 {[%emt 0:00:10]} Bb4 {[%emt 0:00:05]} 4. e3 {[%emt 0:00:11]} O-O {[%emt 0:00:18]} 5. Bd3 {[%emt 0:00:42]} d5 {[%emt 0:00:24]} 6. cxd5 {[%emt 0:00:37]} exd5 {[%emt 0:00:07]} 7. Nge2 {[%emt 0:00:11]} Re8 {[%emt 0:00:19]} 8. Bd2 {[%emt 0:00:44]} Bf8 {[%emt 0:01:16]} 9. O-O {[%emt 0:03:41]} a5 {[%emt 0:13:38]} 10. Rc1 {[%emt 0:02:46]} b6 {[%emt 0:06:35]} 11. Nf4 {[%emt 0:06:08]} Bb7 {[%emt 0:02:04]} 12. Qf3 {[%emt 0:02:43]} Na6 {[%emt 0:06:47]} 13. Rfd1 {[%emt 0:05:16]} c5 {[%emt 0:05:22]} 14. Be1 {[%emt 0:10:03]} Nc7 {[%emt 0:14:40]} 15. dxc5 {[%emt 0:04:06]} bxc5 {[%emt 0:02:02]} 16. Na4 {[%emt 0:01:22]} Nd7 {[%emt 0:02:38]} 17. Bf5 {[%emt 0:09:08]} Ne5 {[%emt 0:00:17]} 18. Qg3 {[%emt 0:01:19]} Qf6 {[%emt 0:05:19]} 19. Nxc5 {[%emt 0:04:17]} Bxc5 {[%emt 0:01:42]} 20. Nh5 {[%emt 0:00:13]} Qh6 {[%emt 0:00:50]} 21. Rxc5 {[%emt 0:01:26]} Qxh5 {[%emt 0:02:21]} 0-1

[Event "Silver Lake Open-A 2019"]
[Site "Veliko Gradiste"]
[Date "2019.06.19"]
[Round "5.4"]
[White "Van Dael, Siem"]
[Black "Radovanovic, Mihajlo"]
[Result "0-1"]
[ECO "B90"]
[WhiteElo "2290"]
[BlackElo "2483"]
[Annotator "ChessBase"]
[PlyCount "62"]
[EventDate "2019.06.16"]
[EventType "swiss"]
[EventCountry "SRB"]
[SourceTitle "playchess.com"]
[Source "ChessBase"]
[SourceQuality "1"]
[TimeControl "40/5400+30:900+30"]

1. e4 {[%emt 0:00:00]} c5 {[%emt 0:02:05]} 2. Nf3 {[%emt 0:00:00]} d6 {[%emt 0:00:06]} 3. d4 {[%emt 0:00:00]} cxd4 {[%emt 0:00:03]} 4. Nxd4 {[%emt 0:00:00]} Nf6 {[%emt 0:00:04]} 5. Nc3 {[%emt 0:00:02]} a6 {[%emt 0:00:03]} 6. Be3 {[%emt 0:00:08]} e5 {[%emt 0:01:02]} 7. Nb3 {[%emt 0:00:07]} Be6 {[%emt 0:00:13]} 8. f3 {[%emt 0:00:07]} h5 {[%emt 0:00:23]} 9. Qd2 {[%emt 0:00:24]} Nbd7 {[%emt 0:00:09]} 10. Nd5 {[%emt 0:00:07]} Bxd5 {[%emt 0:04:29]} 11. exd5 {[%emt 0:00:12]} g6 {[%emt 0:00:37]} 12. Be2 {[%emt 0:00:22]} Bg7 {[%emt 0:00:54]} 13. O-O {[%emt 0:00:17]} b6 {[%emt 0:02:35]} 14. a4 {[%emt 0:00:40]} O-O {[%emt 0:01:14]} 15. a5 {[%emt 0:01:21]} b5 {[%emt 0:00:11]} 16. Rac1 {[%emt 0:00:17]} Qb8 {[%emt 0:06:10]} 17. Rfd1 {[%emt 0:10:57]} Rc8 {[%emt 0:03:51]} 18. Qb4 {[%emt 0:02:52]} Kh7 {[%emt 0:05:48]} 19. h3 {[%emt 0:06:49]} Bh6 {[%emt 0:02:06]} 20. Bxh6 {[%emt 0:02:42]} Kxh6 {[%emt 0:00:05]} 21. g4 {[%emt 0:00:55]} Kg7 {[%emt 0:08:48]} 22. c4 {[%emt 0:08:07]} hxg4 {[%emt 0:04:48]} 23. cxb5 {[%emt 0:09:28]} Rxc1 {[%emt 0:00:41]} 24. Rxc1 {[%emt 0:01:34]} Nxd5 {[%emt 0:05:57]} 25. Qd2 {[%emt 0:03:13]} Nf4 {[%emt 0:00:38]} 26. hxg4 {[%emt 0:07:06]} Qa7+ {[%emt 0:02:40]} 27. b6 {[%emt 0:01:29]} Nxb6 {[%emt 0:00:05]} 28. Qe3 {[%emt 0:00:12]} Nxe2+ {[%emt 0:01:00]} 29. Qxe2 {[%emt 0:00:17]} Nd5+ {[%emt 0:00:31]} 30. Qf2 {[%emt 0:00:29]} Qxf2+ {[%emt 0:01:45]} 31. Kxf2 {[%emt 0:00:09]} Rb8 {[%emt 0:00:02]} 0-1

[Event "Silver Lake Open-A 2019"]
[Site "Veliko Gradiste"]
[Date "2019.06.19"]
[Round "5.5"]
[White "Ernst, Sipke"]
[Black "Rabrenovic, Vladan"]
[Result "1-0"]
[ECO "A13"]
[WhiteElo "2541"]
[BlackElo "2332"]
[Annotator "RC"]
[PlyCount "89"]
[EventDate "2019.06.16"]
[EventType "swiss"]
[EventCountry "SRB"]
[SourceTitle "playchess.com"]
[Source "ChessBase"]
[SourceQuality "1"]
[TimeControl "40/5400+30:900+30"]

1. Nf3 {[%emt 0:00:00]} d5 {[%emt 0:08:14]} 2. c4 {[%emt 0:00:00]} e6 {[%emt 0:01:44]} 3. g3 {[%emt 0:00:08]} Nf6 {[%emt 0:00:07]} 4. Bg2 {[%emt 0:00:07]} Be7 {[%emt 0:02:06]} 5. b3 {[%emt 0:01:01]} d4 {[%emt 0:00:38]} 6. O-O {[%emt 0:00:33]} O-O {[%emt 0:00:24]} 7. e3 {[%emt 0:00:23]} c5 {[%emt 0:00:48]} 8. exd4 {[%emt 0:00:05]} cxd4 {[%emt 0:00:04]} 9. d3 {[%emt 0:00:15]} Nc6 {[%emt 0:00:42]} 10. Bb2 {[%emt 0:01:02]} e5 {[%emt 0:01:26]} 11. Re1 {[%emt 0:01:14]} Nd7 {[%emt 0:00:08]} 12. Ba3 {[%emt 0:01:24]} a5 {[%emt 0:18:40]} 13. Bxe7 {[%emt 0:08:09]} Qxe7 {[%emt 0:00:06]} 14. Nbd2 {[%emt 0:01:24]} Nc5 {[%emt 0:07:50]} 15. Ne4 {[%emt 0:00:14]} Nxe4 {[%emt 0:10:16]} 16. Rxe4 {[%emt 0:00:07]} f6 {[%emt 0:00:06]} 17. a3 {[%emt 0:01:34]} Bf5 {[%emt 0:01:32]} 18. Re1 {[%emt 0:01:00]} Qd7 {[%emt 0:08:21]} 19. Nh4 {[%emt 0:01:07]} Bg4 {[%emt 0:00:06]} 20. Qd2 {[%emt 0:05:20]} g5 {[%emt 0:01:57]} 21. Nf3 {[%emt 0:04:54]} Qf5 {[%emt 0:00:07]} 22. Qe2 {[%emt 0:00:18]} Ra6 {[%emt 0:10:36]} 23. Rab1 {[%emt 0:09:00]} Rb6 {[%emt 0:03:24]} 24. c5 {[%emt 0:01:31]} Ra6 {[%emt 0:00:05]} 25. b4 {[%emt 0:03:12]} axb4 {[%emt 0:00:09]} 26. axb4 {[%emt 0:00:04]} Ra3 {[%emt 0:02:57]} 27. b5 {[%emt 0:01:05]} Nd8 {[%emt 0:00:31]} 28. Qb2 {[%emt 0:05:54]} Qxd3 {[%emt 0:06:41]} 29. Nd2 {[%emt 0:00:05]} Qc3 {[%emt 0:00:35]} 30. Ne4 {[%emt 0:03:02]} Qxb2 {[%emt 0:00:59]} 31. Rxb2 {[%emt 0:00:04]} Ne6 {[%emt 0:07:12]} 32. c6 {[%emt 0:06:53]} bxc6 {[%emt 0:03:44]} 33. bxc6 {[%emt 0:00:50]} Kg7 {[%emt 0:01:12]} 34. Rb7+ {[%emt 0:14:54]} Rf7 {[%emt 0:00:05]} 35. Nd6 {[%emt 0:01:40]} Rxb7 {[%emt 0:01:06]} 36. cxb7 {[%emt 0:00:05]} Rb3 {[%emt 0:00:04]} 37. h3 {[%emt 0:00:26]} Bh5 {[%emt 0:02:20]} 38. Bd5 {[%emt 0:00:04]} Rb4 {[%emt 0:00:12]} 39. Bxe6 {[%emt 0:00:25]} Bf3 {[%emt 0:00:29]} 40. Rc1 {[%emt 0:00:00]} d3 {[%emt 0:00:00]} 41. Rc7+ {[%emt 0:04:12]} Kf8 {[%emt 0:04:42]} 42. Rf7+ {[%emt 0:00:05]} Kg8 {[%emt 0:00:45]} 43. Re7+ {[%emt 0:00:41]} Kf8 {[%emt 0:01:04]} 44. Re8+ {[%emt 0:00:04]} Kg7 {[%emt 0:00:05]} 45. Rg8+ {[%emt 0:00:06]} 1-0

[Event "Silver Lake Open-A 2019"]
[Site "Veliko Gradiste"]
[Date "2019.06.19"]
[Round "5.7"]
[White "Stankovic, Milos"]
[Black "Kosanovic, Goran A"]
[Result "1/2-1/2"]
[ECO "C42"]
[WhiteElo "2462"]
[BlackElo "2316"]
[Annotator "ChessBase"]
[PlyCount "53"]
[EventDate "2019.06.16"]
[EventType "swiss"]
[EventCountry "SRB"]
[SourceTitle "playchess.com"]
[Source "ChessBase"]
[SourceQuality "1"]
[TimeControl "40/5400+30:900+30"]

1. e4 e5 2. Nf3 Nf6 3. Nxe5 d6 4. Nc4 Nxe4 5. Qe2 Qe7 6. Ne3 c6 7. g3 g6 8. Bg2 Nf6 9. d4 Bg7 10. O-O O-O 11. c4 c5 12. dxc5 dxc5 13. Nc3 Nc6 14. Re1 Nd4 15. Qd1 Be6 16. Ned5 Qd7 17. Bg5 Nxd5 18. Nxd5 Bxd5 19. Bxd5 Rae8 20. Qd3 b6 21. Rad1 h5 22. b3 Kh7 23. Kg2 Bh6 24. Bf6 Bg7 25. Bg5 Bh6 26. Bf6 Bg7 27. Bg5 1/2-1/2

[Event "Silver Lake Open-A 2019"]
[Site "Veliko Gradiste"]
[Date "2019.06.19"]
[Round "5.8"]
[White "Stefanov, Emil"]
[Black "Lajthajm, Borko"]
[Result "1/2-1/2"]
[ECO "E16"]
[WhiteElo "2387"]
[BlackElo "2433"]
[Annotator "NA"]
[PlyCount "58"]
[EventDate "2019.06.16"]
[EventType "swiss"]
[EventCountry "SRB"]
[SourceTitle "playchess.com"]
[Source "ChessBase"]
[SourceQuality "1"]
[TimeControl "40/5400+30:900+30"]

1. d4 {[%emt 0:00:00]} Nf6 {[%emt 0:00:00]} 2. c4 {[%emt 0:00:11]} e6 {[%emt 0:00:00]} 3. Nf3 {[%emt 0:00:11]} b6 {[%emt 0:00:00]} 4. g3 {[%emt 0:00:33]} Bb7 {[%emt 0:00:22]} 5. Bg2 {[%emt 0:00:08]} Bb4+ {[%emt 0:00:07]} 6. Bd2 {[%emt 0:00:04]} a5 {[%emt 0:00:14]} 7. O-O {[%emt 0:00:49]} Bxd2 {[%emt 0:00:14]} 8. Qxd2 {[%emt 0:00:01]} O-O {[%emt 0:00:00]} 9. Nc3 {[%emt 0:00:09]} Ne4 {[%emt 0:00:43]} 10. Nxe4 {[%emt 0:00:13]} Bxe4 {[%emt 0:00:08]} 11. Qe3 {[%emt 0:01:01]} d5 {[%emt 0:02:49]} 12. Rac1 {[%emt 0:03:16]} Bxf3 {[%emt 0:00:58]} 13. Bxf3 {[%emt 0:02:00]} c6 {[%emt 0:00:04]} 14. cxd5 {[%emt 0:14:52]} exd5 {[%emt 0:00:22]} 15. Qf4 {[%emt 0:02:09]} f5 {[%emt 0:01:09]} 16. h4 {[%emt 0:00:49]} Ra7 {[%emt 0:01:05]} 17. Rc3 {[%emt 0:02:58]} Re7 {[%emt 0:01:43]} 18. Rfc1 {[%emt 0:01:40]} Rf6 {[%emt 0:00:34]} 19. Bxd5+ {[%emt 0:12:54]} Qxd5 {[%emt 0:00:04]} 20. Qxb8+ {[%emt 0:00:05]} Kf7 {[%emt 0:00:04]} 21. e3 {[%emt 0:06:47]} f4 {[%emt 0:00:05]} 22. exf4 {[%emt 0:06:01]} Rfe6 {[%emt 0:01:48]} 23. Rf1 {[%emt 0:00:07]} Re1 {[%emt 0:01:04]} 24. Rc1 {[%emt 0:00:02]} Rxc1 {[%emt 0:00:08]} 25. Rxc1 {[%emt 0:00:01]} Qxd4 {[%emt 0:00:14]} 26. Qc8 {[%emt 0:05:45]} Re2 {[%emt 0:04:40]} 27. Qf5+ {[%emt 0:06:34]} Kg8 {[%emt 0:00:23]} 28. Qc8+ {[%emt 0:00:06]} Kf7 {[%emt 0:00:59]} 29. Qf5+ {[%emt 0:00:05]} Kg8 {[%emt 0:00:12]} 1/2-1/2

[Event "Silver Lake Open-A 2019"]
[Site "Veliko Gradiste"]
[Date "2019.06.19"]
[Round "5.9"]
[White "Martic, Ivan"]
[Black "Ozkan, Taha"]
[Result "1-0"]
[ECO "A06"]
[WhiteElo "2401"]
[BlackElo "2039"]
[Annotator "NA"]
[PlyCount "97"]
[EventDate "2019.06.16"]
[EventType "swiss"]
[EventCountry "SRB"]
[SourceTitle "playchess.com"]
[Source "ChessBase"]
[SourceQuality "1"]
[TimeControl "40/5400+30:900+30"]

1. Nf3 {[%emt 0:00:00]} d5 {[%emt 0:00:00]} 2. g3 {[%emt 0:00:00]} c6 {[%emt 0:00:00]} 3. Bg2 {[%emt 0:00:00]} Nd7 {[%emt 0:00:00]} 4. d4 {[%emt 0:00:12]} e6 {[%emt 0:00:00]} 5. O-O {[%emt 0:00:18]} f5 {[%emt 0:00:00]} 6. c4 {[%emt 0:00:45]} Ndf6 {[%emt 0:02:19]} 7. b3 {[%emt 0:07:21]} Ne4 {[%emt 0:00:46]} 8. Bb2 {[%emt 0:06:23]} Ngf6 {[%emt 0:01:00]} 9. Ne5 {[%emt 0:01:13]} Be7 {[%emt 0:01:14]} 10. c5 {[%emt 0:07:56]} Nd7 {[%emt 0:01:09]} 11. Nd3 {[%emt 0:08:47]} O-O {[%emt 0:04:20]} 12. Nd2 {[%emt 0:05:11]} e5 {[%emt 0:06:43]} 13. b4 {[%emt 0:03:19]} Nxd2 {[%emt 0:10:47]} 14. Qxd2 {[%emt 0:00:19]} e4 {[%emt 0:01:46]} 15. Ne5 {[%emt 0:00:41]} Nxe5 {[%emt 0:02:00]} 16. dxe5 {[%emt 0:00:09]} Bg5 {[%emt 0:05:45]} 17. e3 {[%emt 0:00:27]} Qe7 {[%emt 0:01:50]} 18. Qd4 {[%emt 0:06:17]} Bh6 {[%emt 0:02:59]} 19. f4 {[%emt 0:06:49]} exf3 {[%emt 0:03:51]} 20. Rxf3 {[%emt 0:00:11]} g6 {[%emt 0:01:52]} 21. g4 {[%emt 0:05:17]} Bg7 {[%emt 0:02:36]} 22. Raf1 {[%emt 0:15:27]} Bd7 {[%emt 0:11:47]} 23. Bh3 {[%emt 0:08:30]} fxg4 {[%emt 0:05:08]} 24. Rxf8+ {[%emt 0:03:00]} Rxf8 {[%emt 0:00:04]} 25. Rxf8+ {[%emt 0:00:18]} Kxf8 {[%emt 0:00:39]} 26. Bg2 {[%emt 0:01:05]} Qh4 {[%emt 0:06:14]} 27. Bc3 {[%emt 0:03:33]} Qg5 {[%emt 0:03:03]} 28. b5 {[%emt 0:00:51]} Ke7 {[%emt 0:02:39]} 29. b6 {[%emt 0:02:16]} a6 {[%emt 0:08:40]} 30. Bf1 {[%emt 0:00:46]} Bc8 {[%emt 0:03:49]} 31. e4 {[%emt 0:01:17]} Qf4 {[%emt 0:02:46]} 32. exd5 {[%emt 0:01:53]} Qxd4+ {[%emt 0:03:02]} 33. Bxd4 {[%emt 0:00:06]} cxd5 {[%emt 0:00:06]} 34. Bxa6 {[%emt 0:00:50]} bxa6 {[%emt 0:01:33]} 35. c6 {[%emt 0:00:07]} Kd8 {[%emt 0:00:46]} 36. Kg2 {[%emt 0:02:07]} Bf8 {[%emt 0:00:27]} 37. e6 {[%emt 0:01:05]} Bd6 {[%emt 0:02:46]} 38. b7 {[%emt 0:01:38]} Bxb7 {[%emt 0:03:11]} 39. cxb7 {[%emt 0:00:16]} Kc7 {[%emt 0:00:56]} 40. Be5 {[%emt 0:00:00]} Kxb7 {[%emt 0:00:00]} 41. Bxd6 {[%emt 0:00:44]} Kc8 {[%emt 0:01:07]} 42. Kg3 {[%emt 0:00:53]} h5 {[%emt 0:00:18]} 43. Kf4 {[%emt 0:01:09]} Kd8 {[%emt 0:01:02]} 44. Ke5 {[%emt 0:01:41]} h4 {[%emt 0:01:27]} 45. Kxd5 {[%emt 0:00:26]} g5 {[%emt 0:00:49]} 46. Ke4 {[%emt 0:02:51]} g3 {[%emt 0:00:49]} 47. hxg3 {[%emt 0:00:14]} hxg3 {[%emt 0:00:33]} 48. Kf3 {[%emt 0:00:07]} Ke8 {[%emt 0:00:59]} 49. Kxg3 {[%emt 0:00:15]} 1-0

[Event "Silver Lake Open-A 2019"]
[Site "Veliko Gradiste"]
[Date "2019.06.19"]
[Round "5.10"]
[White "Pimpalkhare Vedant"]
[Black "Stojanovic, Mihajlo"]
[Result "1/2-1/2"]
[ECO "A08"]
[WhiteElo "2067"]
[BlackElo "2503"]
[Annotator "ChessBase"]
[PlyCount "44"]
[EventDate "2019.06.16"]
[EventType "swiss"]
[EventCountry "SRB"]
[SourceTitle "playchess.com"]
[Source "ChessBase"]
[SourceQuality "1"]
[TimeControl "40/5400+30:900+30"]

1. Nf3 {[%emt 0:00:00]} d5 {[%emt 0:08:38]} 2. g3 {[%emt 0:00:03]} c5 {[%emt 0:02:09]} 3. Bg2 {[%emt 0:01:39]} Nc6 {[%emt 0:00:12]} 4. d4 {[%emt 0:01:44]} Nf6 {[%emt 0:00:31]} 5. O-O {[%emt 0:01:13]} e6 {[%emt 0:00:05]} 6. c4 {[%emt 0:01:57]} dxc4 {[%emt 0:00:05]} 7. dxc5 {[%emt 0:00:42]} Qxd1 {[%emt 0:00:07]} 8. Rxd1 {[%emt 0:00:03]} Bxc5 {[%emt 0:00:07]} 9. Nbd2 {[%emt 0:02:02]} c3 {[%emt 0:00:07]} 10. bxc3 {[%emt 0:00:04]} O-O {[%emt 0:00:06]} 11. Nb3 {[%emt 0:06:21]} Be7 {[%emt 0:00:09]} 12. Bb2 {[%emt 0:12:02]} Bd7 {[%emt 0:06:24]} 13. c4 {[%emt 0:05:34]} Rfd8 {[%emt 0:08:31]} 14. Ne5 {[%emt 0:04:18]} Rac8 {[%emt 0:00:17]} 15. Nxd7 {[%emt 0:05:03]} Nxd7 {[%emt 0:00:07]} 16. Rac1 {[%emt 0:02:51]} b6 {[%emt 0:07:02]} 17. e3 {[%emt 0:09:48]} Kf8 {[%emt 0:18:39]} 18. Bf1 {[%emt 0:08:12]} g6 {[%emt 0:11:55]} 19. Be2 {[%emt 0:06:20]} Nc5 {[%emt 0:02:49]} 20. Nxc5 {[%emt 0:02:10]} Bxc5 {[%emt 0:00:22]} 21. Rxd8+ {[%emt 0:02:51]} Rxd8 {[%emt 0:01:23]} 22. Rd1 {[%emt 0:00:09]} Rxd1+ {[%emt 0:03:00]} 1/2-1/2

[Event "Silver Lake Open-A 2019"]
[Site "Veliko Gradiste"]
[Date "2019.06.20"]
[Round "6.1"]
[White "Zakhartsov, Viacheslav V."]
[Black "Radovanovic, Mihajlo"]
[Result "0-1"]
[ECO "E94"]
[WhiteElo "2518"]
[BlackElo "2483"]
[Annotator "ChessBase"]
[PlyCount "80"]
[EventDate "2019.06.16"]
[EventType "swiss"]
[EventCountry "SRB"]
[SourceTitle "playchess.com"]
[Source "ChessBase"]
[SourceQuality "1"]
[TimeControl "40/5400+30:900+30"]

1. d4 {[%emt 0:00:00]} Nf6 {[%emt 0:00:00]} 2. c4 {[%emt 0:00:00]} g6 {[%emt 0:00:00]} 3. Nc3 {[%emt 0:00:00]} Bg7 {[%emt 0:00:00]} 4. e4 {[%emt 0:00:00]} d6 {[%emt 0:00:02]} 5. Nf3 {[%emt 0:00:00]} O-O {[%emt 0:00:22]} 6. Be2 {[%emt 0:00:00]} e5 {[%emt 0:00:10]} 7. O-O {[%emt 0:00:05]} Na6 {[%emt 0:00:11]} 8. Be3 {[%emt 0:00:15]} c6 {[%emt 0:00:06]} 9. d5 {[%emt 0:00:10]} Ng4 {[%emt 0:00:30]} 10. Bg5 {[%emt 0:00:30]} f6 {[%emt 0:00:30]} 11. Bh4 {[%emt 0:00:30]} c5 {[%emt 0:00:30]} 12. Ne1 {[%emt 0:00:30]} Nh6 {[%emt 0:00:30]} 13. a3 {[%emt 0:04:53]} Bd7 {[%emt 0:00:00]} 14. Nd3 {[%emt 0:06:25]} Qc8 {[%emt 0:03:50]} 15. f3 {[%emt 0:04:44]} Nf7 {[%emt 0:01:45]} 16. Rb1 {[%emt 0:03:51]} b6 {[%emt 0:04:23]} 17. b4 {[%emt 0:04:44]} f5 {[%emt 0:00:48]} 18. b5 {[%emt 0:09:35]} Nc7 {[%emt 0:00:12]} 19. exf5 {[%emt 0:00:16]} gxf5 {[%emt 0:00:18]} 20. Qc2 {[%emt 0:00:45]} Qe8 {[%emt 0:06:23]} 21. Kh1 {[%emt 0:01:19]} Nh8 {[%emt 0:00:29]} 22. f4 {[%emt 0:03:59]} e4 {[%emt 0:04:01]} 23. Nf2 {[%emt 0:05:36]} Ng6 {[%emt 0:12:30]} 24. Bh5 {[%emt 0:01:11]} Qf7 {[%emt 0:00:28]} 25. Nfd1 {[%emt 0:12:48]} Ne8 {[%emt 0:07:22]} 26. Be1 {[%emt 0:02:28]} Nf6 {[%emt 0:01:07]} 27. Be2 {[%emt 0:00:09]} h5 {[%emt 0:01:15]} 28. h4 {[%emt 0:04:56]} Ng4 {[%emt 0:03:31]} 29. Bxg4 {[%emt 0:00:35]} fxg4 {[%emt 0:00:07]} 30. g3 {[%emt 0:00:29]} e3 {[%emt 0:09:52]} 31. Nxe3 {[%emt 0:01:14]} Bd4 {[%emt 0:00:50]} 32. Ncd1 {[%emt 0:00:47]} Rae8 {[%emt 0:02:12]} 33. Qd3 {[%emt 0:04:20]} Ne7 {[%emt 0:03:46]} 34. Bc3 {[%emt 0:03:43]} Nf5 {[%emt 0:09:09]} 35. Nc2 {[%emt 0:00:32]} Qf6 {[%emt 0:03:32]} 36. Nxd4 {[%emt 0:13:11]} cxd4 {[%emt 0:00:06]} 37. Bd2 {[%emt 0:00:30]} Nxh4 {[%emt 0:02:24]} 38. gxh4 {[%emt 0:02:22]} Qxh4+ {[%emt 0:01:11]} 39. Kg2 {[%emt 0:01:04]} Bf5 {[%emt 0:00:11]} 40. Qg3 {[%emt 0:00:00]} Re2+ {[%emt 0:00:00]} 0-1

[Event "Silver Lake Open-A 2019"]
[Site "Veliko Gradiste"]
[Date "2019.06.20"]
[Round "6.3"]
[White "Nestorovic, Dejan"]
[Black "Ernst, Sipke"]
[Result "0-1"]
[ECO "A61"]
[WhiteElo "2339"]
[BlackElo "2541"]
[Annotator "RC"]
[PlyCount "78"]
[EventDate "2019.06.16"]
[EventType "swiss"]
[EventCountry "SRB"]
[SourceTitle "playchess.com"]
[Source "ChessBase"]
[SourceQuality "1"]
[TimeControl "40/5400+30:900+30"]

1. d4 {[%emt 0:00:00]} Nf6 {[%emt 0:00:00]} 2. c4 {[%emt 0:00:00]} c5 {[%emt 0:00:00]} 3. d5 {[%emt 0:00:00]} e6 {[%emt 0:00:00]} 4. Nc3 {[%emt 0:00:00]} exd5 {[%emt 0:00:00]} 5. cxd5 {[%emt 0:00:00]} d6 {[%emt 0:00:00]} 6. Nf3 {[%emt 0:00:00]} g6 {[%emt 0:00:00]} 7. Bg5 {[%emt 0:00:04]} h6 {[%emt 0:00:59]} 8. Bh4 {[%emt 0:00:10]} g5 {[%emt 0:00:03]} 9. Bg3 {[%emt 0:00:09]} Nh5 {[%emt 0:00:05]} 10. e3 {[%emt 0:01:48]} Nxg3 {[%emt 0:07:52]} 11. hxg3 Bg7 12. Nd2 {[%emt 0:03:57]} Nd7 {[%emt 0:00:27]} 13. Qc2 {[%emt 0:01:58]} Qe7 {[%emt 0:01:00]} 14. Nc4 {[%emt 0:26:11]} O-O {[%emt 0:02:03]} 15. a4 {[%emt 0:13:37]} f5 {[%emt 0:07:57]} 16. Be2 {[%emt 0:25:04]} Ne5 {[%emt 0:01:00]} 17. Nxe5 {[%emt 0:10:06]} Qxe5 {[%emt 0:00:06]} 18. Qd2 {[%emt 0:00:15]} f4 {[%emt 0:10:12]} 19. gxf4 {[%emt 0:00:07]} gxf4 {[%emt 0:00:04]} 20. e4 {[%emt 0:01:38]} a6 {[%emt 0:05:41]} 21. Ra3 {[%emt 0:03:11]} Bd7 {[%emt 0:02:27]} 22. a5 {[%emt 0:00:52]} Rab8 {[%emt 0:06:59]} 23. Rb3 {[%emt 0:01:05]} Qg5 {[%emt 0:08:27]} 24. Bf3 {[%emt 0:00:30]} Be5 {[%emt 0:03:13]} 25. Rb6 {[%emt 0:01:13]} Rf7 {[%emt 0:03:54]} 26. Rh5 {[%emt 0:01:01]} Qg7 {[%emt 0:00:57]} 27. Kd1 {[%emt 0:03:21]} Bg4 {[%emt 0:04:43]} 28. Rh4 {[%emt 0:01:30]} Bxf3+ {[%emt 0:03:09]} 29. gxf3 {[%emt 0:00:01]} Kh7 {[%emt 0:00:24]} 30. Ke2 {[%emt 0:04:56]} Qf6 {[%emt 0:01:27]} 31. Rh1 {[%emt 0:01:42]} Rg8 {[%emt 0:03:15]} 32. Qc2 {[%emt 0:00:51]} Qg5 {[%emt 0:05:23]} 33. Qb3 {[%emt 0:00:13]} Qg2 {[%emt 0:02:12]} 34. Rf1 {[%emt 0:00:43]} Rg3 {[%emt 0:01:13]} 35. Nb1 {[%emt 0:00:41]} c4 {[%emt 0:00:04]} 36. Qa3 {[%emt 0:00:23]} c3 {[%emt 0:00:10]} 37. Nxc3 Qxf3+ 38. Ke1 {[%emt 0:00:57]} Bxc3+ {[%emt 0:00:33]} 39. bxc3 {[%emt 0:00:11]} Qxe4+ {[%emt 0:00:06]} 0-1

[Event "Silver Lake Open-A 2019"]
[Site "Veliko Gradiste"]
[Date "2019.06.20"]
[Round "6.5"]
[White "Stankovic, Milos"]
[Black "Martic, Ivan"]
[Result "1-0"]
[ECO "B84"]
[WhiteElo "2462"]
[BlackElo "2401"]
[Annotator "RC"]
[PlyCount "77"]
[EventDate "2019.06.16"]
[EventType "swiss"]
[EventCountry "SRB"]
[SourceTitle "playchess.com"]
[Source "ChessBase"]
[SourceQuality "1"]
[TimeControl "40/5400+30:900+30"]

1. e4 {[%emt 0:00:00]} c5 {[%emt 0:00:00]} 2. Nf3 {[%emt 0:00:08]} e6 {[%emt 0:00:00]} 3. d4 {[%emt 0:00:33]} cxd4 {[%emt 0:00:00]} 4. Nxd4 {[%emt 0:00:19]} a6 {[%emt 0:00:13]} 5. Be2 {[%emt 0:02:32]} Nf6 {[%emt 0:01:40]} 6. Nc3 {[%emt 0:01:09]} d6 {[%emt 0:00:22]} 7. g4 {[%emt 0:05:39]} d5 {[%emt 0:22:47]} 8. exd5 {[%emt 0:02:55]} Nxd5 {[%emt 0:06:34]} 9. Nxd5 {[%emt 0:00:53]} Qxd5 {[%emt 0:04:29]} 10. Bf3 {[%emt 0:00:46]} Qc4 {[%emt 0:04:56]} 11. Be3 {[%emt 0:05:41]} Be7 {[%emt 0:00:55]} 12. Qe2 {[%emt 0:02:08]} Qb4+ {[%emt 0:04:20]} 13. c3 {[%emt 0:01:43]} Qa5 {[%emt 0:01:52]} 14. Qc4 {[%emt 0:10:41]} O-O {[%emt 0:01:33]} 15. Nb3 {[%emt 0:01:59]} Qe5 {[%emt 0:01:21]} 16. O-O-O {[%emt 0:01:37]} a5 {[%emt 0:05:33]} 17. h4 {[%emt 0:07:31]} Nd7 {[%emt 0:08:26]} 18. a4 {[%emt 0:12:18]} Qb8 {[%emt 0:05:26]} 19. Qb5 {[%emt 0:03:08]} Nf6 {[%emt 0:05:53]} 20. h5 {[%emt 0:04:09]} Nd5 {[%emt 0:05:12]} 21. Bxd5 {[%emt 0:01:03]} exd5 {[%emt 0:00:05]} 22. h6 {[%emt 0:00:19]} g6 {[%emt 0:01:06]} 23. Qxd5 {[%emt 0:02:46]} Be6 {[%emt 0:01:55]} 24. Qd4 {[%emt 0:00:50]} f6 {[%emt 0:00:10]} 25. Nc5 {[%emt 0:00:42]} Bxc5 {[%emt 0:01:17]} 26. Qxc5 {[%emt 0:02:24]} Qe8 {[%emt 0:01:25]} 27. Rd4 {[%emt 0:02:07]} Qf7 {[%emt 0:03:34]} 28. Rhd1 {[%emt 0:02:22]} Rfc8 {[%emt 0:02:49]} 29. Qb6 {[%emt 0:02:04]} Re8 {[%emt 0:01:16]} 30. Qb5 {[%emt 0:01:42]} g5 {[%emt 0:02:18]} 31. Rd6 {[%emt 0:03:33]} Bxg4 {[%emt 0:01:43]} 32. Rg1 {[%emt 0:00:55]} Bh5 {[%emt 0:01:10]} 33. Bd4 {[%emt 0:00:54]} Bg6 {[%emt 0:01:58]} 34. Rxf6 {[%emt 0:00:54]} Qa2 {[%emt 0:01:48]} 35. Rxg6+ {[%emt 0:00:35]} hxg6 {[%emt 0:00:06]} 36. h7+ {[%emt 0:00:14]} Kf7 {[%emt 0:00:28]} 37. Qxb7+ {[%emt 0:00:16]} Re7 {[%emt 0:01:12]} 38. Qf3+ {[%emt 0:00:15]} Ke6 {[%emt 0:00:49]} 39. Re1+ {[%emt 0:00:20] Kd5} 1-0